[Event "Late-Titled-Tuesday-Blitz-June-04-2024"]
[Site "Chess.com"]
[Date "2024.06.04"]
[Round "1"]
[White "FXDon77"]
[Black "AustinThomas12345"]
[Result "1-0"]
[WhiteElo "2866"]
[BlackElo "2464"]
[TimeControl "180+1"]
[EndTime "14:08:22 PDT"]
[Termination "FXDon77 won on time"]

1. e4 {[%clk 0:03:00.9]} 1... c5 {[%clk 0:02:59.9]} 2. Nf3 {[%clk 0:03:00.5]}
2... g6 {[%clk 0:02:59.6]} 3. c3 {[%clk 0:02:58.5]} 3... d5 {[%clk 0:02:57.8]}
4. e5 {[%clk 0:02:58.3]} 4... Nc6 {[%clk 0:02:56.3]} 5. d4 {[%clk 0:02:57.6]}
5... Bg4 {[%clk 0:02:55.8]} 6. Bb5 {[%clk 0:02:56.2]} 6... Qb6 {[%clk
0:02:53.5]} 7. Bxc6+ {[%clk 0:02:54]} 7... bxc6 {[%clk 0:02:50.9]} 8. Nbd2
{[%clk 0:02:54.3]} 8... cxd4 {[%clk 0:02:50.8]} 9. cxd4 {[%clk 0:02:53.9]} 9...
Qb5 {[%clk 0:02:50.9]} 10. h3 {[%clk 0:02:52.8]} 10... Bf5 {[%clk 0:02:48.5]}
11. a4 {[%clk 0:02:43.1]} 11... Qa6 {[%clk 0:02:43.1]} 12. Nb3 {[%clk
0:02:42.8]} 12... e6 {[%clk 0:02:36.1]} 13. Nc5 {[%clk 0:02:40.6]} 13... Bxc5
{[%clk 0:02:35]} 14. dxc5 {[%clk 0:02:40.7]} 14... Qa5+ {[%clk 0:02:31]} 15. Bd2
{[%clk 0:02:34.6]} 15... Qxc5 {[%clk 0:02:30.3]} 16. Rc1 {[%clk 0:02:31.2]}
16... Qb6 {[%clk 0:02:30.3]} 17. O-O {[%clk 0:02:27.7]} 17... c5 {[%clk
0:02:24.3]} 18. a5 {[%clk 0:02:18.6]} 18... Qb5 {[%clk 0:02:22.3]} 19. b4 {[%clk
0:02:15]} 19... cxb4 {[%clk 0:01:47]} 20. Nd4 {[%clk 0:02:14.5]} 20... Qd7
{[%clk 0:01:46.9]} 21. Bxb4 {[%clk 0:02:10.5]} 21... h5 {[%clk 0:01:18.8]} 22.
g4 {[%clk 0:02:02.8]} 22... hxg4 {[%clk 0:01:13]} 23. hxg4 {[%clk 0:02:02.7]}
23... Be4 {[%clk 0:00:56.2]} 24. f3 {[%clk 0:02:02.7]} 24... Rb8 {[%clk
0:00:53.2]} 25. Ba3 {[%clk 0:01:39.1]} 25... Rh3 {[%clk 0:00:15.4]} 26. Kg2
{[%clk 0:01:34.3]} 26... Rh4 {[%clk 0:00:13]} 27. fxe4 {[%clk 0:01:31.9]} 27...
dxe4 {[%clk 0:00:13.5]} 28. Nc6 {[%clk 0:01:24.4]} 28... Qxd1 {[%clk 0:00:08.5]}
29. Rfxd1 {[%clk 0:01:23.7]} 29... Rc8 {[%clk 0:00:06.9]} 30. Kg3 {[%clk
0:01:21.9]} 30... g5 {[%clk 0:00:05.3]} 31. Nxa7 {[%clk 0:01:20.3]} 31... Rxc1
{[%clk 0:00:04.3]} 32. Rxc1 {[%clk 0:01:19.9]} 32... Nh6 {[%clk 0:00:05]} 33.
Nc6 {[%clk 0:01:12.7]} 33... Rxg4+ {[%clk 0:00:04.6]} 34. Kf2 {[%clk 0:01:11.8]}
34... Rf4+ {[%clk 0:00:04.8]} 35. Ke2 {[%clk 0:01:11.1]} 35... Ng4 {[%clk
0:00:04.9]} 36. Rd1 {[%clk 0:01:02.3]} 36... f5 {[%clk 0:00:04.3]} 37. exf6
{[%clk 0:00:58.3]} 37... Rf2+ {[%clk 0:00:04.6]} 38. Ke1 {[%clk 0:00:58.4]}
38... e3 {[%clk 0:00:04.9]} 39. Rd8+ {[%clk 0:00:51.2]} 39... Kf7 {[%clk
0:00:05.3]} 40. Rf8+ {[%clk 0:00:51.7]} 40... Kg6 {[%clk 0:00:05.8]} 41. Ne7+
{[%clk 0:00:48.9]} 41... Kh7 {[%clk 0:00:06.2]} 42. f7 {[%clk 0:00:46.9]} 42...
Nh2 {[%clk 0:00:04.1]} 43. Rh8+ {[%clk 0:00:44.9]} 43... Kxh8 {[%clk 0:00:03.5]}
44. f8=Q+ {[%clk 0:00:44.9]} 44... Rxf8 {[%clk 0:00:03.8]} 45. Ng6+ {[%clk
0:00:45.4]} 45... Kg7 {[%clk 0:00:04.3]} 46. Nxf8 {[%clk 0:00:45.8]} 46... g4
{[%clk 0:00:03.6]} 47. Nxe6+ {[%clk 0:00:41.3]} 47... Kf6 {[%clk 0:00:04.3]} 48.
Nf4 {[%clk 0:00:41.3]} 48... g3 {[%clk 0:00:04.7]} 49. a6 {[%clk 0:00:39.7]}
49... Nf3+ {[%clk 0:00:05.3]} 50. Ke2 {[%clk 0:00:39.5]} 50... Nd4+ {[%clk
0:00:05.8]} 51. Kxe3 {[%clk 0:00:38.7]} 51... Nb5 {[%clk 0:00:06.4]} 52. Bc5
{[%clk 0:00:38.1]} 52... Ke5 {[%clk 0:00:06.8]} 53. a7 {[%clk 0:00:33.9]} 53...
Nc7 {[%clk 0:00:05]} 54. Kf3 {[%clk 0:00:21.6]} 54... g2 {[%clk 0:00:04.4]} 55.
Kxg2 {[%clk 0:00:21]} 55... Na8 {[%clk 0:00:02.7]} 56. Kf3 {[%clk 0:00:20.9]}
56... Kf6 {[%clk 0:00:02.5]} 57. Ke4 {[%clk 0:00:21.1]} 57... Kf7 {[%clk
0:00:02.6]} 58. Kd5 {[%clk 0:00:21.3]} 58... Ke8 {[%clk 0:00:03.3]} 59. Kc6
{[%clk 0:00:21.4]} 59... Kd8 {[%clk 0:00:02.9]} 60. Kb7 {[%clk 0:00:18.7]} 60...
Kd7 {[%clk 0:00:03]} 61. Kxa8 {[%clk 0:00:18.5]} 61... Kc8 {[%clk 0:00:03.9]}
62. Bd6 {[%clk 0:00:18.4]} 62... Kd7 {[%clk 0:00:04.1]} 63. Kb7 {[%clk
0:00:19.1]} 63... Kxd6 {[%clk 0:00:04.5]} 64. a8=Q {[%clk 0:00:19.7]} 1-0

[Event "Late-Titled-Tuesday-Blitz-June-04-2024"]
[Site "Chess.com"]
[Date "2024.06.04"]
[Round "1"]
[White "slidingknight2775"]
[Black "PapaieDudu"]
[Result "1-0"]
[WhiteElo "2658"]
[BlackElo "2348"]
[TimeControl "180+1"]
[EndTime "14:08:28 PDT"]
[Termination "slidingknight2775 won by resignation"]

1. d4 {[%clk 0:02:59.7]} 1... d5 {[%clk 0:02:55.5]} 2. c4 {[%clk 0:02:59.7]}
2... e6 {[%clk 0:02:53.9]} 3. Nf3 {[%clk 0:03:00]} 3... Nf6 {[%clk 0:02:53.1]}
4. g3 {[%clk 0:03:00.4]} 4... Be7 {[%clk 0:02:52.4]} 5. Bg2 {[%clk 0:02:59.9]}
5... O-O {[%clk 0:02:52.3]} 6. O-O {[%clk 0:02:59.2]} 6... dxc4 {[%clk
0:02:48.8]} 7. Qc2 {[%clk 0:02:59.4]} 7... a6 {[%clk 0:02:48.4]} 8. a4 {[%clk
0:02:59.5]} 8... Nbd7 {[%clk 0:02:47.9]} 9. Qxc4 {[%clk 0:02:57]} 9... b5 {[%clk
0:02:47.5]} 10. Qc2 {[%clk 0:02:55.2]} 10... Bb7 {[%clk 0:02:42.9]} 11. Bg5
{[%clk 0:02:51.3]} 11... c5 {[%clk 0:02:11.8]} 12. dxc5 {[%clk 0:02:33.3]} 12...
Nxc5 {[%clk 0:02:06.8]} 13. Bxf6 {[%clk 0:02:23.4]} 13... gxf6 {[%clk
0:02:06.3]} 14. Rd1 {[%clk 0:02:15.9]} 14... Qb6 {[%clk 0:02:04.9]} 15. a5
{[%clk 0:02:13.7]} 15... Qa7 {[%clk 0:01:58.5]} 16. Nbd2 {[%clk 0:02:06.2]}
16... Rac8 {[%clk 0:01:55.2]} 17. e3 {[%clk 0:02:04.8]} 17... Rfd8 {[%clk
0:01:49.3]} 18. Nb3 {[%clk 0:01:49.5]} 18... Be4 {[%clk 0:01:46.3]} 19. Rxd8+
{[%clk 0:01:47.1]} 19... Rxd8 {[%clk 0:01:45.9]} 20. Qc3 {[%clk 0:01:19.1]}
20... Rd3 {[%clk 0:01:26.7]} 21. Nxc5 {[%clk 0:00:51.7]} 21... Rxc3 {[%clk
0:01:25.7]} 22. Nxe4 {[%clk 0:00:52.3]} 22... Rc8 {[%clk 0:00:57.8]} 23. Nd4
{[%clk 0:00:47.1]} 23... Qd7 {[%clk 0:00:50.9]} 24. Bf3 {[%clk 0:00:36.9]} 24...
f5 {[%clk 0:00:47.9]} 25. Nc3 {[%clk 0:00:34.7]} 25... e5 {[%clk 0:00:43.3]} 26.
Nde2 {[%clk 0:00:29.7]} 26... e4 {[%clk 0:00:41.8]} 27. Bh5 {[%clk 0:00:30.1]}
27... Bf6 {[%clk 0:00:40.3]} 28. Rd1 {[%clk 0:00:28.8]} 28... Qe6 {[%clk
0:00:36]} 29. Nd5 {[%clk 0:00:21.5]} 29... Bxb2 {[%clk 0:00:34.6]} 30. Nef4
{[%clk 0:00:20.8]} 30... Qe8 {[%clk 0:00:31.1]} 31. g4 {[%clk 0:00:05.6]} 31...
Qe5 {[%clk 0:00:27.5]} 32. g5 {[%clk 0:00:04.9]} 32... Rc1 {[%clk 0:00:26]} 33.
Nf6+ {[%clk 0:00:03.3]} 33... Kg7 {[%clk 0:00:21.4]} 34. h4 {[%clk 0:00:03.9]}
34... Rxd1+ {[%clk 0:00:20.8]} 35. Bxd1 {[%clk 0:00:04.8]} 35... Kh8 {[%clk
0:00:15.7]} 36. Bb3 {[%clk 0:00:03]} 36... Qc7 {[%clk 0:00:13.6]} 37. h5 {[%clk
0:00:02.5]} 37... Bxf6 {[%clk 0:00:13.8]} 38. gxf6 {[%clk 0:00:02.6]} 38... Qe5
{[%clk 0:00:14]} 39. Bxf7 {[%clk 0:00:02.6]} 39... Qxf6 {[%clk 0:00:13.8]} 40.
Bd5 {[%clk 0:00:03.3]} 40... Qa1+ {[%clk 0:00:12.8]} 41. Kg2 {[%clk 0:00:03.3]}
41... Qxa5 {[%clk 0:00:13.7]} 42. Be6 {[%clk 0:00:03.1]} 42... b4 {[%clk
0:00:13.3]} 43. h6 {[%clk 0:00:03.7]} 43... Qe5 {[%clk 0:00:13.5]} 44. Bb3
{[%clk 0:00:02.9]} 44... a5 {[%clk 0:00:13.2]} 45. Ne6 {[%clk 0:00:03.5]} 45...
Qc3 {[%clk 0:00:13]} 46. Bd5 {[%clk 0:00:03.3]} 46... b3 {[%clk 0:00:12.8]} 47.
Ng5 {[%clk 0:00:03.6]} 47... Qf6 {[%clk 0:00:11.4]} 48. Nf7+ {[%clk 0:00:03.8]}
48... Qxf7 {[%clk 0:00:11.8]} 49. Bxf7 {[%clk 0:00:03.6]} 49... a4 {[%clk
0:00:12.4]} 50. Bc4 {[%clk 0:00:02.8]} 50... b2 {[%clk 0:00:11.5]} 51. Ba2
{[%clk 0:00:02.7]} 51... a3 {[%clk 0:00:11.2]} 52. Bb1 {[%clk 0:00:02.8]} 52...
Kg8 {[%clk 0:00:11.3]} 53. Kg3 {[%clk 0:00:03]} 53... Kf8 {[%clk 0:00:12.2]} 54.
Kf4 {[%clk 0:00:03.6]} 54... Ke7 {[%clk 0:00:12.7]} 55. Kxf5 {[%clk 0:00:04.2]}
55... Kd6 {[%clk 0:00:13.6]} 56. Kxe4 {[%clk 0:00:04.3]} 56... Kc5 {[%clk
0:00:14.5]} 57. Kd3 {[%clk 0:00:05]} 57... Kb4 {[%clk 0:00:15.4]} 58. Kc2 {[%clk
0:00:05.7]} 58... Kc4 {[%clk 0:00:14.8]} 59. Ba2+ {[%clk 0:00:06.1]} 59... Kb4
{[%clk 0:00:15.1]} 60. f4 {[%clk 0:00:06]} 60... Kc5 {[%clk 0:00:15.2]} 61. Kc3
{[%clk 0:00:06.3]} 61... Kd6 {[%clk 0:00:15.1]} 62. Kb3 {[%clk 0:00:06.5]} 62...
Kc5 {[%clk 0:00:15.4]} 63. Kxa3 {[%clk 0:00:06.2]} 63... Kb5 {[%clk 0:00:15.5]}
64. Kxb2 {[%clk 0:00:06.5]} 1-0

[Event "Late-Titled-Tuesday-Blitz-June-04-2024"]
[Site "Chess.com"]
[Date "2024.06.04"]
[Round "1"]
[White "Felix-Rose"]
[Black "ansko1999"]
[Result "0-1"]
[WhiteElo "2346"]
[BlackElo "2648"]
[TimeControl "180+1"]
[EndTime "14:08:28 PDT"]
[Termination "ansko1999 won by checkmate"]

1. e4 {[%clk 0:02:56.2]} 1... c5 {[%clk 0:02:59.3]} 2. Nf3 {[%clk 0:02:55.4]}
2... Nf6 {[%clk 0:02:59.1]} 3. Nc3 {[%clk 0:02:54]} 3... d5 {[%clk 0:02:59.2]}
4. exd5 {[%clk 0:02:51.4]} 4... Nxd5 {[%clk 0:03:00.1]} 5. Bb5+ {[%clk
0:02:42.9]} 5... Bd7 {[%clk 0:03:00.1]} 6. Bc4 {[%clk 0:02:38.4]} 6... Nb6
{[%clk 0:02:54.3]} 7. Be2 {[%clk 0:02:33.9]} 7... Nc6 {[%clk 0:02:51.7]} 8. d4
{[%clk 0:02:31.4]} 8... cxd4 {[%clk 0:02:49.1]} 9. Nxd4 {[%clk 0:02:31.2]} 9...
g6 {[%clk 0:02:38.2]} 10. Be3 {[%clk 0:02:27]} 10... Bg7 {[%clk 0:02:37.2]} 11.
Qd2 {[%clk 0:02:22.9]} 11... O-O {[%clk 0:02:32.2]} 12. O-O-O {[%clk 0:02:20.2]}
12... Ne5 {[%clk 0:02:16.8]} 13. Nf3 {[%clk 0:02:12.2]} 13... Bc6 {[%clk
0:02:00.6]} 14. Nxe5 {[%clk 0:02:05.1]} 14... Bxe5 {[%clk 0:01:57.2]} 15. Qe1
{[%clk 0:01:59]} 15... Qc7 {[%clk 0:01:43.7]} 16. Bf3 {[%clk 0:01:40.6]} 16...
Bxf3 {[%clk 0:01:35.1]} 17. gxf3 {[%clk 0:01:41.5]} 17... Bxc3 {[%clk
0:01:33.1]} 18. Qxc3 {[%clk 0:01:41]} 18... Qxc3 {[%clk 0:01:33.3]} 19. bxc3
{[%clk 0:01:41.9]} 19... Rfd8 {[%clk 0:01:26.9]} 20. Bxb6 {[%clk 0:01:38.9]}
20... axb6 {[%clk 0:01:27.8]} 21. Kb2 {[%clk 0:01:38.1]} 21... Kg7 {[%clk
0:01:25.9]} 22. Rhe1 {[%clk 0:01:37.7]} 22... Kf6 {[%clk 0:01:25.8]} 23. Rd4
{[%clk 0:01:30.9]} 23... e5 {[%clk 0:01:17.8]} 24. Rb4 {[%clk 0:01:21.4]} 24...
Rd6 {[%clk 0:01:17.5]} 25. Rb5 {[%clk 0:01:21]} 25... Re8 {[%clk 0:01:11.7]} 26.
f4 {[%clk 0:01:18.3]} 26... Kf5 {[%clk 0:00:32.4]} 27. fxe5 {[%clk 0:01:08]}
27... Rde6 {[%clk 0:00:25.4]} 28. f4 {[%clk 0:01:08.2]} 28... R8e7 {[%clk
0:00:14.2]} 29. Rb4 {[%clk 0:01:05.9]} 29... Re8 {[%clk 0:00:11.4]} 30. Rg1
{[%clk 0:01:01.9]} 30... h6 {[%clk 0:00:11.3]} 31. h4 {[%clk 0:01:00.2]} 31...
f6 {[%clk 0:00:10.2]} 32. Rf1 {[%clk 0:00:41.6]} 32... fxe5 {[%clk 0:00:07.5]}
33. fxe5+ {[%clk 0:00:41.8]} 33... Kxe5 {[%clk 0:00:08.4]} 34. Re1+ {[%clk
0:00:39]} 34... Kf6 {[%clk 0:00:06.5]} 35. Rf1+ {[%clk 0:00:27.9]} 35... Kg7
{[%clk 0:00:07]} 36. Rg1 {[%clk 0:00:25.1]} 36... R8e7 {[%clk 0:00:06.4]} 37. a4
{[%clk 0:00:24.5]} 37... Rf6 {[%clk 0:00:03.7]} 38. Kb3 {[%clk 0:00:22.4]} 38...
Rc7 {[%clk 0:00:04.1]} 39. Rbg4 {[%clk 0:00:20.7]} 39... Rfc6 {[%clk 0:00:04.3]}
40. R1g3 {[%clk 0:00:20.5]} 40... Kh7 {[%clk 0:00:04.6]} 41. h5 {[%clk 0:00:20]}
41... g5 {[%clk 0:00:04.6]} 42. Re4 {[%clk 0:00:19.2]} 42... Kg7 {[%clk
0:00:04.5]} 43. Re8 {[%clk 0:00:19.5]} 43... Rf7 {[%clk 0:00:04.4]} 44. Rge3
{[%clk 0:00:19.6]} 44... Rcf6 {[%clk 0:00:03.9]} 45. Rb8 {[%clk 0:00:19.6]}
45... Rc6 {[%clk 0:00:03.1]} 46. Ree8 {[%clk 0:00:19.7]} 46... Rfc7 {[%clk
0:00:03.3]} 47. Rf8 {[%clk 0:00:19.5]} 47... Rxc3+ {[%clk 0:00:02.9]} 48. Kb4
{[%clk 0:00:20.2]} 48... R3c4+ {[%clk 0:00:03.2]} 49. Kb5 {[%clk 0:00:20.8]}
49... Rxc2 {[%clk 0:00:02.2]} 50. Kxb6 {[%clk 0:00:20.8]} 50... R2c6+ {[%clk
0:00:02.1]} 51. Kb5 {[%clk 0:00:19.3]} 51... Re6 {[%clk 0:00:01.3]} 52. Rg8+
{[%clk 0:00:18.6]} 52... Kf6 {[%clk 0:00:02]} 53. Rbf8+ {[%clk 0:00:19.1]} 53...
Ke5 {[%clk 0:00:02.4]} 54. Rg6 {[%clk 0:00:19.3]} 54... Rxg6 {[%clk 0:00:02.2]}
55. hxg6 {[%clk 0:00:20]} 55... Rg7 {[%clk 0:00:03.1]} 56. Rf7 {[%clk
0:00:19.3]} 56... Rxg6 {[%clk 0:00:03.2]} 57. Rxb7 {[%clk 0:00:19.5]} 57... g4
{[%clk 0:00:03.8]} 58. a5 {[%clk 0:00:18.1]} 58... g3 {[%clk 0:00:04.1]} 59.
Re7+ {[%clk 0:00:17.8]} 59... Kf6 {[%clk 0:00:04]} 60. Re1 {[%clk 0:00:18.7]}
60... g2 {[%clk 0:00:04.5]} 61. a6 {[%clk 0:00:19]} 61... g1=Q {[%clk
0:00:04.3]} 62. Rxg1 {[%clk 0:00:18.8]} 62... Rxg1 {[%clk 0:00:05.2]} 63. a7
{[%clk 0:00:19.2]} 63... Ra1 {[%clk 0:00:06.1]} 64. Kb6 {[%clk 0:00:19.8]} 64...
h5 {[%clk 0:00:05.4]} 65. Kb7 {[%clk 0:00:20.5]} 65... h4 {[%clk 0:00:06]} 66.
a8=Q {[%clk 0:00:21.4]} 66... Rxa8 {[%clk 0:00:05.5]} 67. Kxa8 {[%clk
0:00:21.7]} 67... h3 {[%clk 0:00:06.4]} 68. Kb7 {[%clk 0:00:22.5]} 68... h2
{[%clk 0:00:07.3]} 69. Kc7 {[%clk 0:00:22.9]} 69... h1=Q {[%clk 0:00:08.2]} 70.
Kd7 {[%clk 0:00:23.5]} 70... Qe4 {[%clk 0:00:08.6]} 71. Kd6 {[%clk 0:00:23.7]}
71... Qd4+ {[%clk 0:00:08.5]} 72. Kc6 {[%clk 0:00:23.9]} 72... Ke6 {[%clk
0:00:08.4]} 73. Kc7 {[%clk 0:00:24.2]} 73... Qc5+ {[%clk 0:00:08.7]} 74. Kd8
{[%clk 0:00:24.5]} 74... Qa7 {[%clk 0:00:06.6]} 75. Kc8 {[%clk 0:00:24.8]} 75...
Qe7 {[%clk 0:00:06.4]} 76. Kb8 {[%clk 0:00:24.8]} 76... Kd6 {[%clk 0:00:07.3]}
77. Ka8 {[%clk 0:00:24.5]} 77... Kc6 {[%clk 0:00:08.2]} 78. Kb8 {[%clk
0:00:24.8]} 78... Qb7# {[%clk 0:00:09.1]} 0-1

[Event "Late-Titled-Tuesday-Blitz-June-04-2024"]
[Site "Chess.com"]
[Date "2024.06.04"]
[Round "1"]
[White "pinelone"]
[Black "Bryanl106"]
[Result "0-1"]
[WhiteElo "2404"]
[BlackElo "2722"]
[TimeControl "180+1"]
[EndTime "14:08:33 PDT"]
[Termination "Bryanl106 won by checkmate"]

1. Nf3 {[%clk 0:03:00.9]} 1... Nf6 {[%clk 0:02:59.3]} 2. c4 {[%clk 0:03:00.4]}
2... g6 {[%clk 0:02:59.1]} 3. b3 {[%clk 0:03:00.1]} 3... Bg7 {[%clk 0:02:59.5]}
4. Bb2 {[%clk 0:02:59.8]} 4... O-O {[%clk 0:02:59.8]} 5. g3 {[%clk 0:02:59.7]}
5... d6 {[%clk 0:02:45.1]} 6. Bg2 {[%clk 0:02:59.4]} 6... e5 {[%clk 0:02:45.4]}
7. d3 {[%clk 0:02:59.3]} 7... a5 {[%clk 0:02:44.9]} 8. Nc3 {[%clk 0:02:58.6]}
8... Re8 {[%clk 0:02:31.5]} 9. O-O {[%clk 0:02:58.3]} 9... Nc6 {[%clk
0:02:20.9]} 10. Qd2 {[%clk 0:02:53.8]} 10... Bf5 {[%clk 0:02:12.1]} 11. Ng5
{[%clk 0:02:49]} 11... Qd7 {[%clk 0:01:55.7]} 12. Rad1 {[%clk 0:02:47.7]} 12...
h6 {[%clk 0:01:46.3]} 13. Nge4 {[%clk 0:02:47.6]} 13... Nxe4 {[%clk 0:01:42]}
14. dxe4 {[%clk 0:02:47.3]} 14... Bh3 {[%clk 0:01:41.5]} 15. Bxh3 {[%clk
0:02:34.6]} 15... Qxh3 {[%clk 0:01:42.4]} 16. Nd5 {[%clk 0:02:34.2]} 16... Rac8
{[%clk 0:01:36.3]} 17. f3 {[%clk 0:02:33.4]} 17... h5 {[%clk 0:01:35.2]} 18. e3
{[%clk 0:02:28.5]} 18... h4 {[%clk 0:01:35.1]} 19. g4 {[%clk 0:02:13.8]} 19...
Nd8 {[%clk 0:01:21.8]} 20. Qg2 {[%clk 0:02:05.1]} 20... Qxg2+ {[%clk 0:01:21.1]}
21. Kxg2 {[%clk 0:02:06]} 21... Ne6 {[%clk 0:01:21]} 22. Kh3 {[%clk 0:01:35.1]}
22... g5 {[%clk 0:01:15.9]} 23. Kg2 {[%clk 0:01:30.1]} 23... a4 {[%clk
0:01:04.9]} 24. b4 {[%clk 0:01:20]} 24... a3 {[%clk 0:00:29]} 25. Bc1 {[%clk
0:00:54.3]} 25... Ra8 {[%clk 0:00:18.6]} 26. Rd3 {[%clk 0:00:53.1]} 26... c6
{[%clk 0:00:15.9]} 27. Nc3 {[%clk 0:00:45.8]} 27... Bf8 {[%clk 0:00:13.3]} 28.
Rfd1 {[%clk 0:00:42]} 28... Rec8 {[%clk 0:00:11.9]} 29. Kf2 {[%clk 0:00:36.5]}
29... f6 {[%clk 0:00:12.2]} 30. Ke2 {[%clk 0:00:36.7]} 30... Kf7 {[%clk
0:00:12.6]} 31. b5 {[%clk 0:00:36.6]} 31... cxb5 {[%clk 0:00:11.2]} 32. cxb5
{[%clk 0:00:24.5]} 32... Nc5 {[%clk 0:00:08.2]} 33. R3d2 {[%clk 0:00:24.6]}
33... Na4 {[%clk 0:00:08]} 34. Nd5 {[%clk 0:00:19.1]} 34... Nc3+ {[%clk
0:00:06.6]} 35. Ke1 {[%clk 0:00:18.5]} 35... Nxd1 {[%clk 0:00:06.4]} 36. Rxd1
{[%clk 0:00:19.1]} 36... Rc5 {[%clk 0:00:05.5]} 37. Bd2 {[%clk 0:00:17.2]} 37...
Rxb5 {[%clk 0:00:05.5]} 38. Rc1 {[%clk 0:00:17]} 38... Rb2 {[%clk 0:00:04.5]}
39. Rc7+ {[%clk 0:00:16.6]} 39... Kg6 {[%clk 0:00:05.1]} 40. f4 {[%clk
0:00:13.4]} 40... gxf4 {[%clk 0:00:04.9]} 41. exf4 {[%clk 0:00:13.5]} 41... exf4
{[%clk 0:00:04.1]} 42. Nxf4+ {[%clk 0:00:12.6]} 42... Kg5 {[%clk 0:00:04.6]} 43.
h3 {[%clk 0:00:11.6]} 43... Rxd2 {[%clk 0:00:05.1]} 44. Kxd2 {[%clk 0:00:11.4]}
44... Kxf4 {[%clk 0:00:05.1]} 45. Ke2 {[%clk 0:00:10.7]} 45... Kg3 {[%clk
0:00:05.6]} 46. Rc3+ {[%clk 0:00:10.6]} 46... Kg2 {[%clk 0:00:06.3]} 47. Ke3
{[%clk 0:00:09.5]} 47... Bh6+ {[%clk 0:00:06.6]} 48. Ke2 {[%clk 0:00:09]} 48...
Bf4 {[%clk 0:00:07.5]} 49. Rf3 {[%clk 0:00:08.8]} 49... Bg3 {[%clk 0:00:08.1]}
50. Rd3 {[%clk 0:00:08.2]} 50... Kxh3 {[%clk 0:00:08.5]} 51. Kf3 {[%clk
0:00:08.3]} 51... Re8 {[%clk 0:00:06]} 52. Rd1 {[%clk 0:00:08.3]} 52... Kh2
{[%clk 0:00:05.8]} 53. Rd2+ {[%clk 0:00:08]} 53... Kh3 {[%clk 0:00:05.6]} 54.
Rd1 {[%clk 0:00:08.7]} 54... Rc8 {[%clk 0:00:03.7]} 55. Rd3 {[%clk 0:00:06.2]}
55... Rc1 {[%clk 0:00:03.4]} 56. Rd2 {[%clk 0:00:05.8]} 56... Rf1+ {[%clk
0:00:03.9]} 57. Ke3 {[%clk 0:00:06.1]} 57... Re1+ {[%clk 0:00:04.8]} 58. Kd3
{[%clk 0:00:05.9]} 58... Rf1 {[%clk 0:00:04.3]} 59. Rc2 {[%clk 0:00:06]} 59...
Rf2 {[%clk 0:00:04.7]} 60. Rc7 {[%clk 0:00:05.4]} 60... Kg2 {[%clk 0:00:05.3]}
61. Ke3 {[%clk 0:00:05.3]} 61... h3 {[%clk 0:00:06.2]} 62. Rc3 {[%clk
0:00:04.6]} 62... h2 {[%clk 0:00:06.8]} 63. Kd4 {[%clk 0:00:04.8]} 63... h1=Q
{[%clk 0:00:07]} 64. Kd5 {[%clk 0:00:05.4]} 64... Qd1+ {[%clk 0:00:07.2]} 65.
Ke6 {[%clk 0:00:05.3]} 65... Qxg4+ {[%clk 0:00:07]} 66. Ke7 {[%clk 0:00:05.3]}
66... Qg7+ {[%clk 0:00:07.2]} 67. Ke6 {[%clk 0:00:05.5]} 67... Qg8+ {[%clk
0:00:07.7]} 68. Kd7 {[%clk 0:00:04.7]} 68... d5 {[%clk 0:00:07.5]} 69. exd5
{[%clk 0:00:03.8]} 69... Qxd5+ {[%clk 0:00:08.4]} 70. Kc8 {[%clk 0:00:03.5]}
70... Qe6+ {[%clk 0:00:08.2]} 71. Kxb7 {[%clk 0:00:02.4]} 71... Rb2+ {[%clk
0:00:08.9]} 72. Ka8 {[%clk 0:00:01]} 72... Qa6# {[%clk 0:00:08.5]} 0-1